[Event "1st 4NCL International U2050"]
[Site "Telford"]
[Date "2018.11.01"]
[Round "3"]
[White "Wilson, Matthew R"]
[Black "Ward, Andy"]
[Result "1/2-1/2"]
[ECO "A00"]
[WhiteElo "1820"]
[BlackElo "1790"]
[Annotator "NA"]
[PlyCount "58"]
[EventDate "2018.10.31"]
[EventType "swiss"]
[EventCountry "GBR"]
[SourceTitle "playchess.com"]
[Source "ChessBase"]
[SourceQuality "1"]
[TimeControl "5400+30"]

1. Nf3 d6 2. e4 e5 3. d4 Nd7 4. Bc4 exd4 5. Nxd4 Ne5 6. Bb3 Nf6 7. Nc3 Be7 8. h3 O-O 9. Be3 c5 10. Nf3 c4 11. Nxe5 cxb3 12. Nf3 bxc2 13. Qxc2 Qc7 14. Rc1 Qa5 15. O-O Qh5 16. Nh2 Be6 17. Qd1 Qg6 18. Qf3 Nd7 19. Nd5 Bxd5 20. exd5 Ne5 21. Qe2 Bd8 22. Qb5 Bb6 23. Bxb6 axb6 24. f4 Qd3 25. Qxb6 Nc4 26. Qf2 Rxa2 27. Rfe1 Qb3 28. Qd4 b5 29. Rb1 Qc2 1/2-1/2

[Event "1st 4NCL International U2050"]
[Site "Telford"]
[Date "2018.11.01"]
[Round "3"]
[White "Gogia, Armaan"]
[Black "Walley, A Clive"]
[Result "1-0"]
[ECO "A00"]
[WhiteElo "1808"]
[BlackElo "1846"]
[Annotator "NA"]
[PlyCount "51"]
[EventDate "2018.10.31"]
[EventType "swiss"]
[EventCountry "GBR"]
[SourceTitle "playchess.com"]
[Source "ChessBase"]
[SourceQuality "1"]
[TimeControl "5400+30"]

1. e4 c5 2. Nf3 Nc6 3. d4 cxd4 4. Nxd4 Nf6 5. Nc3 e5 6. Ndb5 d6 7. Bg5 a6 8. Na3 b5 9. Bxf6 gxf6 10. Nd5 f5 11. Bxb5 axb5 12. Nxb5 Ra4 13. Nbc7+ Kd7 14. O-O Qg5 15. Nb6+ Kxc7 16. Nxa4 Rg8 17. g3 fxe4 18. c3 Bg4 19. Qb3 Ne7 20. Qb6+ Kd7 21. Nc5+ dxc5 22. Rad1+ Bxd1 23. Rxd1+ Nd5 24. Rxd5+ Bd6 25. Qxd6+ Ke8 26. Rxe5+ 1-0

[Event "1st 4NCL International U2050"]
[Site "Telford"]
[Date "2018.11.01"]
[Round "3"]
[White "Wiltshir, Rich"]
[Black "Whitehead, Mark A"]
[Result "1/2-1/2"]
[ECO "A00"]
[WhiteElo "1673"]
[BlackElo "1945"]
[Annotator "NA"]
[PlyCount "52"]
[EventDate "2018.10.31"]
[EventType "swiss"]
[EventCountry "GBR"]
[SourceTitle "playchess.com"]
[Source "ChessBase"]
[SourceQuality "1"]
[TimeControl "5400+30"]

1. c4 e5 2. g3 c6 3. Bg2 d6 4. Nc3 Be6 5. b3 Nd7 6. Nf3 h6 7. O-O Ngf6 8. Qc2 Be7 9. d4 O-O 10. Rd1 Qc7 11. Ba3 Rfe8 12. Rac1 Rac8 13. e4 Bg4 14. d5 c5 15. Rd3 Nf8 16. h3 Bd7 17. Rcd1 Ng6 18. Nh2 a6 19. Nf1 b5 20. Bc1 b4 21. Ne2 Bf8 22. Rf3 Nh7 23. Ne3 Ng5 24. Rf5 Ne7 25. h4 Nxf5 26. exf5 Nh7 1/2-1/2

[Event "1st 4NCL International U2050"]
[Site "Telford"]
[Date "2018.11.01"]
[Round "3"]
[White "Stubbs, Oliver"]
[Black "Ali, Golam S"]
[Result "1-0"]
[ECO "A00"]
[WhiteElo "1672"]
[BlackElo "1859"]
[Annotator "NA"]
[PlyCount "95"]
[EventDate "2018.10.31"]
[EventType "swiss"]
[EventCountry "GBR"]
[SourceTitle "playchess.com"]
[Source "ChessBase"]
[SourceQuality "1"]
[TimeControl "5400+30"]

1. d4 Nf6 2. Bf4 d5 3. e3 e6 4. Nf3 Bd6 5. Bg3 O-O 6. Nbd2 Re8 7. Bd3 c6 8. Ne5 Qe7 9. f4 Nbd7 10. Qf3 c5 11. c3 cxd4 12. exd4 Nf8 13. O-O Bd7 14. Rae1 Bc6 15. Bh4 Ng6 16. Nxg6 hxg6 17. f5 gxf5 18. Bxf5 Qc7 19. Bb1 Ne4 20. Nxe4 dxe4 21. Bxe4 Bxe4 22. Rxe4 f5 23. Re2 Bxh2+ 24. Kh1 Bd6 25. Rfe1 Qf7 26. Bg3 Bxg3 27. Qxg3 Qh5+ 28. Kg1 Kf7 29. Qd6 Qh4 30. Qe5 Qf6 31. Qxf6+ Kxf6 32. Re5 Rad8 33. d5 Rd6 34. c4 Re7 35. Kf2 g5 36. Kf3 b5 37. b3 a5 38. a4 bxc4 39. bxc4 Rb6 40. c5 g4+ 41. Kf2 Rb2+ 42. Kg1 g3 43. Rxe6+ Rxe6 44. Rxe6+ Kg5 45. Re1 Rc2 46. c6 Rc5 47. Rd1 Kf6 48. d6 1-0

[Event "1st 4NCL International U2050"]
[Site "Telford"]
[Date "2018.11.01"]
[Round "3"]
[White "Burgoyne, Peter A"]
[Black "Aubury, Benjamin"]
[Result "0-1"]
[ECO "A00"]
[WhiteElo "1665"]
[BlackElo "1566"]
[Annotator "NA"]
[PlyCount "52"]
[EventDate "2018.10.31"]
[EventType "swiss"]
[EventCountry "GBR"]
[SourceTitle "playchess.com"]
[Source "ChessBase"]
[SourceQuality "1"]
[TimeControl "5400+30"]

1. e4 c6 2. d4 d5 3. exd5 cxd5 4. c4 Nf6 5. Nc3 e6 6. Nf3 Bb4 7. Qa4+ Nc6 8. Ne5 Qa5 9. Qxa5 Bxa5 10. Nxc6 bxc6 11. Bd2 O-O 12. Bd3 Ba6 13. b3 Rfd8 14. Ne2 Bxd2+ 15. Kxd2 c5 16. Rac1 cxd4 17. c5 Ne4+ 18. Bxe4 dxe4 19. Rhe1 g5 20. b4 f5 21. a4 f4 22. b5 Bc8 23. Ng1 e3+ 24. fxe3 fxe3+ 25. Ke2 d3+ 26. Kxe3 d2 0-1

[Event "1st 4NCL International U2050"]
[Site "Telford"]
[Date "2018.11.01"]
[Round "3"]
[White "Parry, Jacques"]
[Black "Zdanowski, Adrian"]
[Result "1/2-1/2"]
[ECO "A00"]
[WhiteElo "1625"]
[BlackElo "1845"]
[Annotator "NA"]
[PlyCount "127"]
[EventDate "2018.10.31"]
[EventType "swiss"]
[EventCountry "GBR"]
[SourceTitle "playchess.com"]
[Source "ChessBase"]
[SourceQuality "1"]
[TimeControl "5400+30"]

1. d4 Nf6 2. c4 g6 3. Nc3 d5 4. Nf3 Bg7 5. Bg5 Ne4 6. cxd5 Nxc3 7. bxc3 Qxd5 8. e3 Qa5 9. Qb3 e6 10. Qb5+ Qxb5 11. Bxb5+ c6 12. Bd3 O-O 13. Rb1 Nd7 14. Bf4 Re8 15. Bg3 h6 16. O-O b6 17. Be4 Bb7 18. Nd2 e5 19. Bf3 f5 20. Rfc1 g5 21. Bh5 f4 22. Bxe8 Rxe8 23. exf4 exf4 24. Bxf4 gxf4 25. Re1 Rd8 26. Re4 c5 27. Rxf4 cxd4 28. cxd4 Bd5 29. Nb3 Nb8 30. Rg4 Nc6 31. Rd1 Nb4 32. Rd2 Rd7 33. a3 Nc6 34. Nc1 Kh7 35. Ne2 Be6 36. Re4 Bd5 37. Rg4 Bc4 38. Re4 Bxe2 39. Rexe2 Nxd4 40. Kf1 Rc7 41. Re3 Rc1+ 42. Re1 Rc4 43. Re3 a5 44. f4 Nf5 45. Rf3 h5 46. g3 b5 47. Rd5 Nd4 48. Rxh5+ Kg8 49. Rd3 b4 50. Rxa5 b3 51. Ra8+ Kh7 52. Rb8 Ra4 53. Rbxb3 Nxb3 54. Rxb3 Bf8 55. Rb7+ Kg6 56. Rb5 Bxa3 57. h4 Bc1 58. h5+ Kh6 59. Rf5 Bb2 60. Kg2 Ra3 61. Kh3 Ra1 62. Kg2 Ra3 63. Kh3 Ra1 64. Kg2 1/2-1/2

[Event "1st 4NCL International U2050"]
[Site "Telford"]
[Date "2018.11.01"]
[Round "3"]
[White "Chung, Ethan Cj"]
[Black "Gorgun, Aliriza Atif"]
[Result "0-1"]
[ECO "A00"]
[WhiteElo "1577"]
[BlackElo "1739"]
[Annotator "NA"]
[PlyCount "70"]
[EventDate "2018.10.31"]
[EventType "swiss"]
[EventCountry "GBR"]
[SourceTitle "playchess.com"]
[Source "ChessBase"]
[SourceQuality "1"]
[TimeControl "5400+30"]

1. e4 c5 2. d4 cxd4 3. c3 dxc3 4. Nxc3 Nc6 5. Nf3 g6 6. Bf4 Bg7 7. Bc4 Nf6 8. O-O O-O 9. Qe2 d6 10. Rfd1 Qa5 11. Bg5 Bg4 12. Bxf6 Bxf6 13. Rd5 Qc7 14. Rad1 Ne5 15. Bb3 Nxf3+ 16. gxf3 Bh5 17. R5d3 Be5 18. Qf1 Kh8 19. Rc1 Rac8 20. Rc2 Qd7 21. Ba4 Qd8 22. Bb3 e6 23. Qg2 Qh4 24. Rcd2 Bf4 25. Rd1 b5 26. Nxb5 Rc5 27. Qh1 Rxb5 28. h3 f5 29. a4 fxe4 30. axb5 exd3 31. Rxd3 Qg5+ 32. Qg2 Qxb5 33. Rc3 Bd2 34. Rc2 Bxf3 35. Bc4 Qf5 0-1

[Event "1st 4NCL International U2050"]
[Site "Telford"]
[Date "2018.11.02"]
[Round "4"]
[White "Whitehead, Mark A"]
[Black "Burgoyne, Peter A"]
[Result "0-1"]
[ECO "B26"]
[WhiteElo "1945"]
[BlackElo "1665"]
[Annotator "NA"]
[PlyCount "54"]
[EventDate "2018.10.31"]
[EventType "swiss"]
[EventCountry "GBR"]
[SourceTitle "playchess.com"]
[Source "ChessBase"]
[SourceQuality "1"]
[TimeControl "5400+30"]

{[%evp 15,54,10,1,0,27,-34,17,32767,-8,-52,32767,-118,-149,-118,-129,-270,-288,-314,-368,-396,-237,32767,-242,-264,32767,32767,32767,-233,-222,-236,-243,32767,32767,32767,32767,32767,-299,-262,-291,-452,-504]} 1. e4 {[%emt 0:12:22]} c5 {[%emt 0:00:00]} 2. Nc3 {[%emt 0:00:49]} Nc6 {[%emt 0:00:00]} 3. g3 {[%emt 0:00:08]} g6 {[%emt 0:01:28]} 4. Bg2 {[%emt 0:00:09]} Bg7 {[%emt 0:00:08]} 5. d3 {[%emt 0:00:11]} d6 {[%emt 0:00:23]} 6. Be3 {[%emt 0:01:25]} Nf6 {[%emt 0:00:25]} 7. h3 {[%emt 0:01:21]} Rb8 {[%emt 0:02:29]} 8. Nge2 {[%emt 0:04:37]} O-O {[%emt 0:03:41]} 9. O-O {[%emt 0:11:43] LiveBook: 65 Games} e5 {[%emt 0:10:02] B26: Closed Sicilian: 3 g3, lines with early Be3} (9... b5 10. Qd2 b4 11. Nd1 e5 12. a3 a5 13. axb4 axb4 14. Bh6 Bxh6 15. Qxh6 Nd4 16. Nxd4 cxd4 17. Qd2 Qb6 18. Kh2 Kg7 19. f4 {0-1 (83) Artemiev,V (2704)-Kovalev,V (2650) Poikovsky 2018}) 10. g4 $146 {[%emt 0:04:54]} ({White should play} 10. a3 $11) ({Predecessor:} 10. f4 exf4 11. Nxf4 b5 12. Qd2 b4 13. Nce2 Nd7 14. Rab1 Nd4 15. Nxd4 cxd4 16. Bf2 Nc5 17. Ne2 {1-0 (27) Ghaem Maghami,E (2593)-Ibrahimov,R (2537) Dubai 2009}) 10... Nd4 {[%emt 0:07:29]} 11. Ng3 {[%emt 0:02:00]} b5 {[%emt 0:02:31]} 12. Nd5 {[%emt 0:01:35]} Ne6 {[%emt 0:03:47]} 13. Qd2 {[%emt 0:03:59]} (13. Ne2 $15) 13... Nxd5 {[%emt 0:02:56]} 14. exd5 {[%emt 0:00:11] [#]} Nf4 $1 {[%emt 0:00:58]} 15. c4 {[%emt 0:12:59]} (15. Bxf4 $17 {might work better.} exf4 16. Qxf4) 15... bxc4 {[%emt 0:01:22]} 16. dxc4 {[%emt 0:00:27]} f5 {[%emt 0:06:06]} 17. gxf5 {[%emt 0:07:08]} Bxf5 {[%emt 0:00:51]} (17... Nxg2 $142 18. Kxg2 gxf5) 18. Nxf5 {[%emt 0:02:45]} Rxf5 {[%emt 0:04:20]} 19. Rab1 {[%emt 0:03:00]} Qg5 {[%emt 0:05:14]} 20. Bxf4 {[%emt 0:01:32]} exf4 {[%emt 0:01:54]} 21. f3 {[%emt 0:00:15]} (21. Kh2 $17 {was necessary.}) 21... Re5 {[%emt 0:06:43]} 22. Rfe1 {[%emt 0:02:23]} Re3 {[%emt 0:05:30]} 23. Rxe3 {[%emt 0:01:47]} fxe3 {[%emt 0:00:21]} 24. Qe2 {[%emt 0:00:06]} Qf4 {[%emt 0:01:46]} 25. b3 {[%emt 0:00:20]} Bd4 {[%emt 0:03:27]} 26. Rc1 {[%emt 0:00:35]} a5 {[%emt 0:00:47]} 27. Rb1 {[%emt 0:08:03] [#]} a4 $19 {[%emt 0:01:07]} 0-1

[Event "1st 4NCL International U2050"]
[Site "Telford"]
[Date "2018.11.02"]
[Round "4"]
[White "Wynarczyk, Raymond"]
[Black "Gorgun, Aliriza Atif"]
[Result "0-1"]
[ECO "B51"]
[WhiteElo "1908"]
[BlackElo "1739"]
[Annotator "NA RC"]
[PlyCount "110"]
[EventDate "2018.10.31"]
[EventType "swiss"]
[EventCountry "GBR"]
[SourceTitle "playchess.com"]
[Source "ChessBase"]
[SourceQuality "1"]
[TimeControl "5400+30"]

{[%evp 16,108,-6,-37,-6,-27,-41,-47,-33,-30,-38,32767,32767,0,12,-7,-11,32767,32767,-64,-61,-70,-52,32767,-29,-63,-37,-50,-32,-56,-27,-64,-50,-46,32767,-42,-54,-45,-55,-80,-36,32767,32767,32767,-63,-110,-118,-116,-104,-99,-35,-38,17,39,8,0,0,32767,32767,32767,32767,32767,32767,32767,32767,32767,32767,-366,32767,32767,32767,32767,32767,32767,32767,32767,-2533,32767,32767,32767,32767,32767,-5065,32767,-5065,-29972,-29983,-12841,-29985,-29985,-29986,-29986,-29987,-29982,-29987]} 1. e4 {[%emt 0:00:00]} c5 {[%emt 0:00:00]} 2. Nf3 {[%emt 0:00:00]} d6 {[%emt 0:00:00]} 3. Bb5+ {[%emt 0:00:02]} Nd7 {[%emt 0:00:29]} 4. d4 {[%emt 0:00:51]} cxd4 {[%emt 0:00:11]} 5. Qxd4 {[%emt 0:00:16]} a6 {[%emt 0:07:19]} 6. Bc4 {[%emt 0:03:50] B51: Sicilian: Moscow Variation (3 Bb5+) without 3...Bd7} (6. Be2 Ngf6 7. c4 g6 8. Nc3 Bg7 9. O-O O-O 10. Qe3 b6 11. Rd1 Bb7 12. Ng5 Qc7 13. f3 Rac8 {1-0 (68) Nakamura,H (2777)-Vachier Lagrave,M (2779) Saint Louis 2018}) 6... Ngf6 {[%emt 0:00:58]} 7. Bg5 {[%emt 0:05:00]} e6 {[%emt 0:02:36]} 8. Nc3 {[%emt 0:01:47]} Be7 {[%emt 0:00:19]} 9. O-O {[%emt 0:02:35]} O-O {[%emt 0:00:08]} 10. Rad1 {[%emt 0:02:00]} b5 $146 {[%emt 0:01:09]} ({Predecessor:} 10... Qc7 11. a4 b6 12. Ba2 Bb7 13. Rd2 Rfd8 {1-0 (53) Zierk,S (2391)-Grandelius,N (2500) Porto Carras 2010}) 11. Bb3 {[%emt 0:01:37]} Qc7 {[%emt 0:01:06]} 12. Rfe1 {[%emt 0:07:36]} h6 {[%emt 0:08:31]} 13. Bh4 {[%emt 0:01:40]} e5 {[%emt 0:00:45]} 14. Qd2 {[%emt 0:03:07]} Bb7 {[%emt 0:04:10]} 15. Nd5 {[%emt 0:04:15]} Bxd5 {[%emt 0:00:08]} 16. Bxf6 {[%emt 0:04:36]} Nxf6 {[%emt 0:00:11]} 17. Bxd5 {[%emt 0:03:52]} Nxd5 {[%emt 0:00:08]} 18. exd5 {[%emt 0:00:23]} Rac8 {[%emt 0:00:19]} 19. c3 {[%emt 0:01:23]} Rcd8 {[%emt 0:01:00]} 20. Qe3 {[%emt 0:05:44]} Rd7 {[%emt 0:03:26]} 21. h3 {[%emt 0:07:18]} f5 {[%emt 0:08:07]} 22. Qe2 {[%emt 0:04:11]} Bd8 {[%emt 0:02:14]} 23. Nd2 {[%emt 0:03:52]} Qc5 {[%emt 0:13:14]} 24. Nb3 {[%emt 0:01:47]} Qc4 {[%emt 0:03:57]} 25. Qxc4 {[%emt 0:04:47]} bxc4 {[%emt 0:00:05]} 26. Nd2 {[%emt 0:00:36]} Rc7 {[%emt 0:00:08]} 27. Ra1 {[%emt 0:05:59]} a5 {[%emt 0:00:47]} 28. g3 {[%emt 0:06:01]} Bg5 {[%emt 0:01:24]} 29. Nf3 {[%emt 0:01:14]} Be7 {[%emt 0:04:59]} ({Black should play} 29... Rb8 $17 30. Nxg5 hxg5) 30. Kg2 {[%emt 0:02:54]} Rb8 {[%emt 0:00:14]} 31. Re2 {[%emt 0:01:50]} Rb5 {[%emt 0:00:17]} 32. Rd1 {[%emt 0:01:03]} Rcc5 {[%emt 0:02:58]} (32... Rcb7 $17 33. Rdd2 a4) 33. a4 {[%emt 0:02:01]} Rxd5 {[%emt 0:03:31]} (33... Rb7 $15) 34. axb5 {[%emt 0:00:20]} Rxd1 {[%emt 0:00:05]} 35. Nd2 {[%emt 0:02:20]} (35. Nd4 $5 {[%cal Rd4c6]} exd4 36. b6 $16) 35... d5 {[%emt 0:01:02]} 36. Nf3 {[%emt 0:01:41]} e4 {[%emt 0:02:50]} 37. Nd4 {[%emt 0:00:43]} Bc5 {[%emt 0:07:46]} 38. Nxf5 {[%emt 0:02:01]} Kf7 {[%emt 0:00:24]} 39. Nd4 {[%emt 0:01:25]} Bxd4 {[%emt 0:04:03]} 40. cxd4 {[%emt 0:00:07]} Rd3 {[%emt 0:00:02]} 41. Re3 {[%emt 0:00:49]} Ke6 {[%emt 0:00:16]} 42. Kf1 {[%emt 0:01:33]} Kd6 {[%emt 0:00:12]} 43. Ke2 {[%emt 0:00:12]} Kc7 {[%emt 0:00:36]} 44. Rxd3 {[%emt 0:00:40]} cxd3+ {[%emt 0:00:38]} 45. Ke3 {[%emt 0:01:31]} Kb6 {[%emt 0:00:40]} 46. f4 {[%emt 0:00:13]} Kxb5 {[%emt 0:00:41]} 47. g4 {[%emt 0:01:29]} Kc4 {[%emt 0:00:05]} 48. h4 {[%emt 0:00:54]} d2 $19 {[%emt 0:00:36]} (48... Kb3 $142 49. h5 Kc2 50. f5 d2 51. Kf4 d1=Q 52. g5 Qf3+ 53. Ke5 e3 54. Ke6 e2 55. Kf7 Qxf5+ 56. Kg8 e1=R 57. gxh6 gxh6 58. b4 Re7 59. bxa5 Qc8#) 49. Kxd2 {[%emt 0:00:15]} Kxd4 {[%emt 0:00:24]} 50. h5 {[%emt 0:01:32]} e3+ {[%emt 0:00:12]} 51. Ke2 {[%emt 0:00:09]} Ke4 {[%emt 0:00:04]} 52. f5 {[%emt 0:00:28]} d4 {[%emt 0:00:10]} 53. b3 {[%emt 0:00:38]} d3+ {[%emt 0:00:14]} 54. Ke1 {[%emt 0:00:24]} Kf4 {[%emt 0:00:08]} (54... Kf3 {[%emt 0:00:36]}) 55. g5 {[%emt 0:00:36]} Kf3 0-1

[Event "1st 4NCL International U2050"]
[Site "Telford"]
[Date "2018.11.02"]
[Round "4"]
[White "Gostelow, David W"]
[Black "Fallowfield, Nicholas"]
[Result "1/2-1/2"]
[ECO "D00"]
[WhiteElo "1892"]
[BlackElo "1883"]
[Annotator "NA RC"]
[PlyCount "38"]
[EventDate "2018.10.31"]
[EventType "swiss"]
[EventCountry "GBR"]
[SourceTitle "playchess.com"]
[Source "ChessBase"]
[SourceQuality "1"]
[TimeControl "5400+30"]

{[%evp 8,38,15,15,16,27,32767,23,20,-33,-20,32767,32767,32767,32767,32767,32767,-88,-58,-57,-69,-65,-56,-76,-64,-84,-89,-101,-50,-112,-58,-45,-36]} 1. d4 {[%emt 0:00:00]} d5 {[%emt 0:00:00]} 2. Bf4 {[%emt 0:00:00]} Bg4 {[%emt 0:00:00]} 3. c4 {[%emt 0:06:16]} Nc6 {[%emt 0:09:45]} 4. h3 {[%emt 0:19:04]} Bh5 {[%emt 0:01:15]} 5. Qa4 {[%emt 0:03:46]} e6 {[%emt 0:07:02]} 6. e3 {[%emt 0:01:27]} Bb4+ {[%emt 0:01:24]} 7. Nc3 {[%emt 0:01:11]} Nge7 {[%emt 0:03:09]} 8. c5 {[%emt 0:10:41]} (8. Nge2 $11) 8... O-O {[%emt 0:01:03]} 9. Be2 {[%emt 0:00:40]} Bxc3+ {[%emt 0:06:26]} 10. bxc3 {[%emt 0:00:05]} Bxe2 {[%emt 0:00:09]} 11. Nxe2 {[%emt 0:00:33]} b6 {[%emt 0:00:23]} 12. cxb6 {[%emt 0:04:24]} (12. Nc1 $11 {keeps the balance.}) 12... axb6 {[%emt 0:01:18]} 13. Qc2 {[%emt 0:00:57]} Na5 {[%emt 0:00:19]} 14. O-O {[%emt 0:00:09]} Nc4 {[%emt 0:01:11]} 15. Nc1 {[%emt 0:03:20]} Ra3 {[%emt 0:06:43]} 16. Nb3 {[%emt 0:02:18]} Nc6 {[%emt 0:06:22]} 17. e4 {[%emt 0:00:20]} Qd7 {[%emt 0:04:16]} 18. Rfe1 {[%emt 0:01:20]} Rfa8 {[%emt 0:02:22]} 19. exd5 {[%emt 0:00:34]} exd5 $15 {[%emt 0:02:40]} 1/2-1/2

[Event "1st 4NCL International U2050"]
[Site "Telford"]
[Date "2018.11.02"]
[Round "4"]
[White "Ali, Golam S"]
[Black "Wiltshir, Rich"]
[Result "1/2-1/2"]
[ECO "D66"]
[WhiteElo "1859"]
[BlackElo "1673"]
[Annotator "NA RC"]
[PlyCount "86"]
[EventDate "2018.10.31"]
[EventType "swiss"]
[EventCountry "GBR"]
[SourceTitle "playchess.com"]
[Source "ChessBase"]
[SourceQuality "1"]
[TimeControl "5400+30"]

{[%evp 17,77,29,29,12,20,6,66,64,69,7,12,0,32767,0,32767,-58,-37,-62,-48,-80,-84,-71,-83,-100,-31,-12,0,-14,-2,-31,-12,-98,-12,-8,-13,-20,0,-23,-15,-25,-14,32767,-18,0,0,-4,32767,32767,32767,32767,0,-6,0,-389,-462,-277,-470,-4134,-11268,-12842,0,0]} 1. d4 {[%emt 0:00:00]} d5 {[%emt 0:00:00]} 2. c4 {[%emt 0:00:00]} Nf6 {[%emt 0:01:30]} 3. Nc3 {[%emt 0:00:00]} e6 {[%emt 0:00:55]} 4. Bg5 {[%emt 0:00:15]} Be7 {[%emt 0:00:12]} 5. e3 {[%emt 0:00:08]} c6 {[%emt 0:01:13]} 6. Nf3 {[%emt 0:00:11]} Nbd7 {[%emt 0:00:45]} 7. Rc1 {[%emt 0:05:12]} O-O {[%emt 0:01:20]} 8. Bd3 {[%emt 0:00:12]} a5 {[%emt 0:05:10] D66: Queen's Gambit Declined: Classical: Main Line (7 Rc1 c6 8 Bd3)} (8... dxc4 9. Bxc4 Nd5 10. Bxe7 Qxe7 11. O-O Nxc3 12. Rxc3 e5 13. Bb3 e4 14. Nd2 Nf6 15. Qb1 Bf5 16. f4 g6 17. h3 h5 18. a3 Kg7 19. Qe1 Rfc8 20. Ba2 b6 21. Qe2 Rc7 22. Rfc1 {½-½ (61) Peralta,F (2569)-Salinas Herrera,P (2486) Batumi 2018}) 9. c5 $146 {[%emt 0:02:45]} ({Predecessor:} 9. O-O h6 10. Bh4 Re8 11. Re1 Nf8 12. Qc2 dxc4 13. Bxc4 Ng6 14. Bg3 Nh5 15. a4 Nxg3 16. hxg3 {1-0 (43) Kroo,I (1866)-Raguz,I (2003) Djakovo 2006}) 9... b6 {[%emt 0:01:56]} 10. cxb6 {[%emt 0:09:02]} c5 {[%emt 0:01:44]} 11. O-O {[%emt 0:07:55]} cxd4 {[%emt 0:02:37]} 12. exd4 {[%emt 0:00:22]} Qxb6 {[%emt 0:01:49]} 13. Qc2 {[%emt 0:02:43]} ({White should try} 13. Ne5 $16) 13... h6 {[%emt 0:00:17]} 14. Na4 {[%emt 0:01:26]} Qd6 {[%emt 0:00:51]} 15. Bxf6 {[%emt 0:09:26]} Bxf6 {[%emt 0:06:44]} 16. Nc5 {[%emt 0:01:15]} ({Better is} 16. Qc6 $11 Qxc6 17. Rxc6) 16... Qf4 {[%emt 0:06:56]} 17. Nxd7 {[%emt 0:07:47]} Bxd7 {[%emt 0:04:43]} 18. Qc7 {[%emt 0:00:25]} Qxc7 {[%emt 0:00:16]} 19. Rxc7 {[%emt 0:00:06]} Rfd8 {[%emt 0:00:40]} 20. Ne5 {[%emt 0:03:16] [#]} Bxe5 {[%emt 0:00:34]} (20... Be8 $1 $17 21. Rfc1 Rdb8) 21. dxe5 {[%emt 0:00:06]} Kf8 {[%emt 0:00:57]} 22. f4 {[%emt 0:00:27]} Ke8 {[%emt 0:01:16]} 23. f5 {[%emt 0:00:32]} Rdc8 {[%emt 0:01:38]} 24. Rfc1 {[%emt 0:13:55]} (24. Rxc8+ $11 {keeps the balance.} Rxc8 25. f6) 24... Kd8 {[%emt 0:02:45]} ({Better is} 24... exf5 $17 25. Kf2 Rcb8) 25. Rxc8+ {[%emt 0:03:29]} Rxc8 {[%emt 0:00:19]} 26. Rxc8+ {[%emt 0:00:06]} Kxc8 {[%emt 0:00:16]} 27. g4 {[%emt 0:00:51]} Kc7 {[%emt 0:00:44]} 28. Kf2 {[%emt 0:00:53]} Kb6 {[%emt 0:00:17]} 29. Ke3 {[%emt 0:06:47]} Kc5 {[%emt 0:01:22]} 30. h4 $1 {[%emt 0:00:35]} Ba4 {[%emt 0:04:22]} 31. g5 {[%emt 0:07:52]} exf5 {[%emt 0:04:24]} 32. Bxf5 {[%emt 0:00:59]} hxg5 {[%emt 0:01:14]} 33. hxg5 {[%emt 0:00:42]} d4+ {[%emt 0:00:49]} 34. Kf4 {[%emt 0:01:45]} Bb5 {[%emt 0:01:17]} 35. e6 $2 {[%emt 0:02:16]} (35. g6 $11 {and White has nothing to worry.} fxg6 36. Bxg6) 35... fxe6 {[%emt 0:00:28]} 36. Bxe6 {[%emt 0:00:13]} Bc4 {[%emt 0:00:20]} 37. Bxc4 {[%emt 0:02:18]} (37. Bd7 $142 Bxa2 38. Ke4) 37... Kxc4 {[%emt 0:00:16]} 38. Ke4 {[%emt 0:00:41]} g6 $2 {[%emt 0:02:15]} (38... a4 {mates} 39. Kf4 {[#]} a3 $1 {[%mdl 512]} 40. bxa3 d3 41. Kf5 d2 42. Kg6 d1=Q 43. Kxg7 Kd5 44. Kf7 Qf3+ 45. Ke7 Qf5 46. Ke8 Kd6 47. a4 Qg6+ 48. Kf8 Ke6 49. a5 Qf7#) 39. a4 $11 {[%emt 0:03:23]} d3 {[%emt 0:06:02]} 40. Ke3 {[%emt 0:00:21]} Kb3 {[%emt 0:01:26]} 41. Kxd3 {[%emt 0:00:10]} Kxa4 {[%emt 0:00:12]} 42. Kc3 {[%emt 0:08:04]} Kb5 {[%emt 0:00:16]} 43. Kb3 {[%emt 0:00:28]} a4+ {[%emt 0:02:28]} 1/2-1/2